[Event "GrandPrix_29.05"]
[Site "Chess.com"]
[Date "2020.05.29"]
[Round "1"]
[White "N4700000"]
[Black "chess_big_master"]
[Result "1-0"]
[WhiteElo "2526"]
[BlackElo "2090"]
[TimeControl "600+2"]
[EndTime "9:24:28 PDT"]
[Termination "N4700000 won on time"]

1. e4 {[%clk 0:09:55.7]} 1... d6 {[%clk 0:10:01.1]} 2. d4 {[%clk 0:09:55.4]}
2... Nf6 {[%clk 0:10:01.4]} 3. f3 {[%clk 0:09:55.5]} 3... Nbd7 {[%clk
0:09:55.4]} 4. Be3 {[%clk 0:09:53.7]} 4... e5 {[%clk 0:09:55.4]} 5. d5 {[%clk
0:09:51.3]} 5... g6 {[%clk 0:09:37.9]} 6. Qd2 {[%clk 0:09:47.4]} 6... Bg7 {[%clk
0:09:38.3]} 7. c4 {[%clk 0:09:46.2]} 7... O-O {[%clk 0:09:38.5]} 8. Nc3 {[%clk
0:09:41.9]} 8... Nh5 {[%clk 0:09:24.2]} 9. Nge2 {[%clk 0:09:39.4]} 9... f5
{[%clk 0:09:22.3]} 10. O-O-O {[%clk 0:09:34.1]} 10... f4 {[%clk 0:09:08.4]} 11.
Bf2 {[%clk 0:09:33.9]} 11... a5 {[%clk 0:09:00]} 12. Kb1 {[%clk 0:09:30]} 12...
Nc5 {[%clk 0:08:58.5]} 13. Nc1 {[%clk 0:09:28.8]} 13... b6 {[%clk 0:08:52.9]}
14. Nd3 {[%clk 0:09:10]} 14... a4 {[%clk 0:08:11.5]} 15. Nb4 {[%clk 0:09:05.2]}
15... Bd7 {[%clk 0:08:02.9]} 16. Nb5 {[%clk 0:08:53.8]} 16... Nf6 {[%clk
0:07:40.2]} 17. Bd3 {[%clk 0:08:21.2]} 17... Ne8 {[%clk 0:07:15.5]} 18. Bc2
{[%clk 0:08:12.6]} 18... Qf6 {[%clk 0:06:55]} 19. h4 {[%clk 0:07:50.2]} 19...
Rf7 {[%clk 0:06:32.2]} 20. Nc6 {[%clk 0:07:41.7]} 20... Bxc6 {[%clk 0:05:44.5]}
21. dxc6 {[%clk 0:07:41.1]} 21... Qe6 {[%clk 0:05:45.5]} 22. Qd5 {[%clk
0:07:26.4]} 22... Qxd5 {[%clk 0:05:38.1]} 23. exd5 {[%clk 0:07:11.5]} 23... Nf6
{[%clk 0:04:56]} 24. a3 {[%clk 0:06:53.6]} 24... e4 {[%clk 0:03:35.1]} 25. Bxc5
{[%clk 0:06:43.1]} 25... bxc5 {[%clk 0:03:15.9]} 26. Bxe4 {[%clk 0:06:33.7]}
26... Nxe4 {[%clk 0:03:16.5]} 27. fxe4 {[%clk 0:06:35.6]} 27... h6 {[%clk
0:03:11]} 28. Kc2 {[%clk 0:06:14.4]} 28... Be5 {[%clk 0:02:41.3]} 29. Rd3 {[%clk
0:05:31.7]} 29... Re8 {[%clk 0:02:15.2]} 30. Rf3 {[%clk 0:05:17.7]} 30... Bg7
{[%clk 0:02:01.8]} 31. Re1 {[%clk 0:05:03]} 31... Kh7 {[%clk 0:01:31.8]} 32. g4
{[%clk 0:04:26.4]} 32... g5 {[%clk 0:01:19.5]} 33. h5 {[%clk 0:04:20.3]} 33...
Rfe7 {[%clk 0:01:15.7]} 34. b3 {[%clk 0:03:51.2]} 34... axb3+ {[%clk 0:00:56.7]}
35. Kxb3 {[%clk 0:03:50.3]} 35... Ra8 {[%clk 0:00:46.5]} 36. a4 {[%clk 0:03:44]}
36... Kg8 {[%clk 0:00:46.8]} 37. Rf2 {[%clk 0:03:16.6]} 37... Be5 {[%clk
0:00:27.1]} 38. Ra2 {[%clk 0:03:12.7]} 38... Ra5 {[%clk 0:00:26.8]} 39. Kc2
{[%clk 0:03:07.7]} 39... Kf8 {[%clk 0:00:24.8]} 40. Nc3 {[%clk 0:02:54.6]} 40...
Bd4 {[%clk 0:00:20.7]} 41. Nb1 {[%clk 0:02:40.7]} 41... Be3 {[%clk 0:00:19]} 42.
Nd2 {[%clk 0:02:28.3]} 42... Bxd2 {[%clk 0:00:15.9]} 43. Kxd2 {[%clk 0:02:28.3]}
43... Re8 {[%clk 0:00:16.5]} 44. Kd3 {[%clk 0:02:09.3]} 44... Kf7 {[%clk
0:00:11.1]} 45. Rb1 {[%clk 0:02:06.4]} 45... Kf6 {[%clk 0:00:07.6]} 46. Rb7
{[%clk 0:01:42.7]} 46... Rc8 {[%clk 0:00:08.5]} 47. e5+ {[%clk 0:01:36.9]} 47...
dxe5 {[%clk 0:00:08.4]} 48. Ke4 {[%clk 0:01:32]} 48... Rca8 {[%clk 0:00:08.8]}
49. Rxc7 {[%clk 0:01:22.9]} 49... Rxa4 {[%clk 0:00:10]} 50. Rxa4 {[%clk
0:01:09.6]} 50... Rxa4 {[%clk 0:00:11.9]} 51. Rh7 {[%clk 0:01:01.4]} 51... Rxc4+
{[%clk 0:00:12.4]} 52. Kd3 {[%clk 0:00:59.6]} 52... Rd4+ {[%clk 0:00:13.7]} 53.
Kc3 {[%clk 0:00:59.2]} 53... Ra4 {[%clk 0:00:09.2]} 54. c7 {[%clk 0:00:51]}
54... Ra8 {[%clk 0:00:09.7]} 55. d6 {[%clk 0:00:51.4]} 55... f3 {[%clk
0:00:08.3]} 56. d7 {[%clk 0:00:49.4]} 56... f2 {[%clk 0:00:03.8]} 57. d8=Q+
{[%clk 0:00:48.6]} 1-0

[Event "GrandPrix_29.05"]
[Site "Chess.com"]
[Date "2020.05.29"]
[Round "1"]
[White "KruHor"]
[Black "Grebnev_A"]
[Result "1-0"]
[WhiteElo "2646"]
[BlackElo "2177"]
[TimeControl "600+2"]
[EndTime "9:24:29 PDT"]
[Termination "KruHor won on time"]

1. d4 {[%clk 0:09:53.2]} 1... Nf6 {[%clk 0:10:00.4]} 2. Nf3 {[%clk 0:09:51.9]}
2... g6 {[%clk 0:10:01.5]} 3. c4 {[%clk 0:09:51.9]} 3... Bg7 {[%clk 0:10:02.1]}
4. Nc3 {[%clk 0:09:52.1]} 4... O-O {[%clk 0:10:02.7]} 5. e4 {[%clk 0:09:52]}
5... d6 {[%clk 0:10:03.7]} 6. Be2 {[%clk 0:09:52.3]} 6... Nbd7 {[%clk
0:10:03.9]} 7. Be3 {[%clk 0:09:45.8]} 7... a5 {[%clk 0:09:54.8]} 8. Nd2 {[%clk
0:09:33.6]} 8... c6 {[%clk 0:09:35.7]} 9. a3 {[%clk 0:08:55.9]} 9... Ne8 {[%clk
0:09:05.2]} 10. O-O {[%clk 0:08:45.1]} 10... f5 {[%clk 0:08:26.4]} 11. f4 {[%clk
0:08:38.9]} 11... e5 {[%clk 0:07:59.8]} 12. dxe5 {[%clk 0:08:14.8]} 12... dxe5
{[%clk 0:07:57.9]} 13. exf5 {[%clk 0:08:06.1]} 13... gxf5 {[%clk 0:07:57.2]} 14.
fxe5 {[%clk 0:07:49.5]} 14... Nxe5 {[%clk 0:07:45.7]} 15. Nb3 {[%clk 0:06:30.6]}
15... Qxd1 {[%clk 0:06:57.1]} 16. Raxd1 {[%clk 0:06:29.7]} 16... Be6 {[%clk
0:05:46.9]} 17. Bc5 {[%clk 0:05:52.7]} 17... Rf7 {[%clk 0:05:19.2]} 18. Nd4
{[%clk 0:05:48.1]} 18... Bxc4 {[%clk 0:04:37.4]} 19. Nxf5 {[%clk 0:05:46.6]}
19... Bf8 {[%clk 0:03:59.2]} 20. Bxf8 {[%clk 0:04:41.7]} 20... Kxf8 {[%clk
0:04:00.2]} 21. Bxc4 {[%clk 0:04:32.9]} 21... Nxc4 {[%clk 0:04:00.5]} 22. Ne4
{[%clk 0:04:31.6]} 22... Ng7 {[%clk 0:00:42.7]} 23. Nh6 {[%clk 0:04:12.1]} 23...
Rxf1+ {[%clk 0:00:41.4]} 24. Rxf1+ {[%clk 0:04:11.9]} 24... Ke8 {[%clk
0:00:42.5]} 25. Rf7 {[%clk 0:04:05]} 25... Ne6 {[%clk 0:00:43.8]} 26. b3 {[%clk
0:03:40.9]} 26... Ne5 {[%clk 0:00:26.8]} 27. Nd6+ {[%clk 0:03:36.5]} 27... Kd8
{[%clk 0:00:27.5]} 28. Nxb7+ {[%clk 0:03:36]} 28... Kc8 {[%clk 0:00:29]} 29.
Nd6+ {[%clk 0:03:36.3]} 29... Kd8 {[%clk 0:00:30.5]} 30. Rxh7 {[%clk 0:03:30.5]}
30... Rb8 {[%clk 0:00:31.4]} 31. Rb7 {[%clk 0:03:00.7]} 31... Rxb7 {[%clk
0:00:16.6]} 32. Nxb7+ {[%clk 0:03:00.9]} 32... Ke7 {[%clk 0:00:18.5]} 33. Nxa5
{[%clk 0:02:54.6]} 33... Kf6 {[%clk 0:00:18.2]} 34. h3 {[%clk 0:02:51.5]} 34...
Nd4 {[%clk 0:00:18.1]} 35. Ng4+ {[%clk 0:02:48.3]} 35... Nxg4 {[%clk 0:00:19.2]}
36. hxg4 {[%clk 0:02:48.8]} 36... Kg5 {[%clk 0:00:21.1]} 37. Kf2 {[%clk
0:02:47.6]} 37... Kxg4 {[%clk 0:00:20.5]} 38. Ke3 {[%clk 0:02:40.3]} 38... Nc2+
{[%clk 0:00:20.9]} 39. Kf2 {[%clk 0:02:40.7]} 39... Nxa3 {[%clk 0:00:17.8]} 40.
Nxc6 {[%clk 0:02:40.7]} 40... Nb5 {[%clk 0:00:19.7]} 41. b4 {[%clk 0:02:38.5]}
41... Kf4 {[%clk 0:00:20.2]} 42. g3+ {[%clk 0:02:36.8]} 42... Kg4 {[%clk
0:00:21.6]} 43. Ne5+ {[%clk 0:02:36.1]} 43... Kf5 {[%clk 0:00:22.7]} 44. Nc4
{[%clk 0:02:27.8]} 44... Ke4 {[%clk 0:00:16.2]} 45. Ne3 {[%clk 0:02:24.5]} 45...
Nd4 {[%clk 0:00:16.9]} 46. Nd1 {[%clk 0:02:15.6]} 46... Nb5 {[%clk 0:00:17.3]}
47. Ke2 {[%clk 0:01:59.8]} 47... Nd4+ {[%clk 0:00:16]} 48. Kd2 {[%clk
0:01:59.4]} 48... Kf3 {[%clk 0:00:15.9]} 49. Kd3 {[%clk 0:01:59.6]} 49... Nb5
{[%clk 0:00:14.9]} 50. Nc3 {[%clk 0:01:59.5]} 50... Nc7 {[%clk 0:00:13.1]} 51.
Ne2 {[%clk 0:01:37.6]} 51... Nd5 {[%clk 0:00:07.6]} 52. b5 {[%clk 0:01:37.7]}
52... Nb6 {[%clk 0:00:08.6]} 53. Kd4 {[%clk 0:01:26.1]} 53... Na4 {[%clk
0:00:06.7]} 54. Nc3 {[%clk 0:01:23.1]} 54... Nb6 {[%clk 0:00:06.6]} 55. Kc5
{[%clk 0:01:13.1]} 55... Nc8 {[%clk 0:00:06.4]} 56. Ne2 {[%clk 0:00:54.6]} 56...
Kg4 {[%clk 0:00:02.3]} 57. Kc6 {[%clk 0:00:43.9]} 1-0

[Event "GrandPrix_29.05"]
[Site "Chess.com"]
[Date "2020.05.29"]
[Round "1"]
[White "Magicmaster17"]
[Black "levvard"]
[Result "0-1"]
[WhiteElo "2054"]
[BlackElo "2030"]
[TimeControl "600+2"]
[EndTime "9:24:31 PDT"]
[Termination "levvard won on time"]

1. Nf3 {[%clk 0:09:57.7]} 1... e6 {[%clk 0:09:59.5]} 2. c4 {[%clk 0:09:57]} 2...
d5 {[%clk 0:09:59]} 3. g3 {[%clk 0:09:55.9]} 3... dxc4 {[%clk 0:09:57.8]} 4.
Qa4+ {[%clk 0:09:50.3]} 4... Nd7 {[%clk 0:09:54.6]} 5. Bg2 {[%clk 0:09:47.9]}
5... Nf6 {[%clk 0:09:53.6]} 6. Qxc4 {[%clk 0:09:45.2]} 6... Bd6 {[%clk
0:09:48.2]} 7. O-O {[%clk 0:09:36.4]} 7... O-O {[%clk 0:09:47.9]} 8. Nc3 {[%clk
0:09:12.1]} 8... Nb6 {[%clk 0:09:37.5]} 9. Qb3 {[%clk 0:09:08.1]} 9... e5 {[%clk
0:09:28.7]} 10. d3 {[%clk 0:09:03.1]} 10... Be6 {[%clk 0:09:27]} 11. Qc2 {[%clk
0:09:03.6]} 11... Rb8 {[%clk 0:09:19.1]} 12. d4 {[%clk 0:08:42.2]} 12... exd4
{[%clk 0:09:07.8]} 13. Nxd4 {[%clk 0:08:43]} 13... Re8 {[%clk 0:09:04]} 14. Rd1
{[%clk 0:08:36.8]} 14... Bd7 {[%clk 0:08:56.4]} 15. Ndb5 {[%clk 0:08:11.5]}
15... Be5 {[%clk 0:08:40.6]} 16. Be3 {[%clk 0:05:57.3]} 16... c6 {[%clk
0:08:30.1]} 17. Nd6 {[%clk 0:05:48.7]} 17... Bxd6 {[%clk 0:08:28.1]} 18. Bxb6
{[%clk 0:05:32.3]} 18... axb6 {[%clk 0:08:27.1]} 19. Rxd6 {[%clk 0:05:33.1]}
19... Qe7 {[%clk 0:08:21]} 20. Rad1 {[%clk 0:05:33.5]} 20... Bg4 {[%clk
0:07:40.5]} 21. R6d2 {[%clk 0:04:42.4]} 21... Red8 {[%clk 0:07:23.8]} 22. a4
{[%clk 0:04:27.7]} 22... h6 {[%clk 0:07:08.7]} 23. Qb3 {[%clk 0:04:21.9]} 23...
Rxd2 {[%clk 0:07:01.2]} 24. Rxd2 {[%clk 0:04:23.8]} 24... Rd8 {[%clk 0:07:02.4]}
25. Rxd8+ {[%clk 0:03:38.1]} 25... Qxd8 {[%clk 0:07:04.3]} 26. h3 {[%clk
0:03:39.6]} 26... Be6 {[%clk 0:07:02.8]} 27. Qb4 {[%clk 0:03:40.9]} 27... Qc7
{[%clk 0:06:48.8]} 28. e4 {[%clk 0:03:01.6]} 28... Qd8 {[%clk 0:06:38.8]} 29. e5
{[%clk 0:02:42.7]} 29... Nd7 {[%clk 0:06:31.6]} 30. Qd4 {[%clk 0:02:18.2]} 30...
Qc7 {[%clk 0:06:28.1]} 31. f4 {[%clk 0:02:18.3]} 31... f6 {[%clk 0:06:10.4]} 32.
exf6 {[%clk 0:02:03.5]} 32... Nxf6 {[%clk 0:06:12.3]} 33. g4 {[%clk 0:02:03.2]}
33... Bf7 {[%clk 0:05:56.3]} 34. Kf2 {[%clk 0:01:58.5]} 34... Nd7 {[%clk
0:05:51.6]} 35. b4 {[%clk 0:01:43.8]} 35... c5 {[%clk 0:05:30]} 36. Nb5 {[%clk
0:01:08.9]} 36... Qd8 {[%clk 0:05:28.1]} 37. Qd2 {[%clk 0:01:08]} 37... Qe7
{[%clk 0:04:59.4]} 38. bxc5 {[%clk 0:00:38.4]} 38... Nxc5 {[%clk 0:04:58.8]} 39.
Qd4 {[%clk 0:00:20]} 39... Ne6 {[%clk 0:04:50.7]} 40. Qe3 {[%clk 0:00:19.7]}
40... Qd7 {[%clk 0:04:31.5]} 41. f5 {[%clk 0:00:14.1]} 41... Nc5 {[%clk
0:04:29.1]} 42. Qd4 {[%clk 0:00:08.4]} 42... Qe7 {[%clk 0:04:23.8]} 43. Bf3
{[%clk 0:00:07.2]} 43... Bb3 {[%clk 0:04:06.4]} 44. Nc3 {[%clk 0:00:08.4]} 44...
Bf7 {[%clk 0:03:57.5]} 45. Bd5 {[%clk 0:00:08.3]} 45... Bxd5 {[%clk 0:03:32.2]}
46. Qxd5+ {[%clk 0:00:09.4]} 46... Kh7 {[%clk 0:03:30.6]} 47. Qd4 {[%clk
0:00:08.4]} 47... Qc7 {[%clk 0:03:25.5]} 48. Kg2 {[%clk 0:00:09.3]} 48... Qc6+
{[%clk 0:03:17.8]} 49. Kg3 {[%clk 0:00:09.8]} 49... Qc7+ {[%clk 0:03:15.2]} 50.
Kg2 {[%clk 0:00:09]} 50... Qc6+ {[%clk 0:03:13.7]} 51. Kf2 {[%clk 0:00:09.5]}
51... Qe8 {[%clk 0:03:09.4]} 52. Qe3 {[%clk 0:00:10]} 52... Qf7 {[%clk
0:03:01.9]} 53. Kg3 {[%clk 0:00:09.4]} 53... Qc4 {[%clk 0:02:57.6]} 54. Kf3
{[%clk 0:00:08.3]} 54... Nd3 {[%clk 0:02:49.8]} 55. Ne4 {[%clk 0:00:06.6]} 55...
Qd5 {[%clk 0:02:40.9]} 56. Ke2 {[%clk 0:00:05]} 56... Ne5 {[%clk 0:02:36.5]} 57.
f6 {[%clk 0:00:06.4]} 57... Kg8 {[%clk 0:02:22.6]} 58. fxg7 {[%clk 0:00:06.7]}
58... Qe6 {[%clk 0:02:16.6]} 59. Qd4 {[%clk 0:00:06.6]} 59... Nc6 {[%clk
0:02:15]} 60. Qd5 {[%clk 0:00:04]} 60... Qxd5 {[%clk 0:02:10.2]} 61. Nf6+ {[%clk
0:00:05.3]} 61... Kxg7 {[%clk 0:02:09.8]} 62. Nxd5 {[%clk 0:00:07.2]} 62... b5
{[%clk 0:01:49.5]} 63. axb5 {[%clk 0:00:05.6]} 63... Nd4+ {[%clk 0:01:50.1]} 64.
Ke3 {[%clk 0:00:06.2]} 64... Nxb5 {[%clk 0:01:50.4]} 65. h4 {[%clk 0:00:07.1]}
65... Nd6 {[%clk 0:01:49]} 66. Kf4 {[%clk 0:00:08.2]} 66... b5 {[%clk 0:01:44]}
67. h5 {[%clk 0:00:05.4]} 67... Nf7 {[%clk 0:01:42.7]} 68. Kf5 {[%clk
0:00:04.3]} 68... Nd6+ {[%clk 0:01:41.8]} 69. Ke6 {[%clk 0:00:05.6]} 69... Nc4
{[%clk 0:01:41.4]} 0-1

[Event "GrandPrix_29.05"]
[Site "Chess.com"]
[Date "2020.05.29"]
[Round "1"]
[White "gygygygygyggygygygy"]
[Black "komandoras123"]
[Result "0-1"]
[WhiteElo "2050"]
[BlackElo "2489"]
[TimeControl "600+2"]
[EndTime "9:24:33 PDT"]
[Termination "komandoras123 won on time"]

1. e4 {[%clk 0:09:57.3]} 1... d6 {[%clk 0:09:45.2]} 2. Nf3 {[%clk 0:09:48.3]}
2... Nf6 {[%clk 0:09:45.8]} 3. d3 {[%clk 0:09:48]} 3... g6 {[%clk 0:09:42.4]} 4.
g3 {[%clk 0:09:49.3]} 4... Bg7 {[%clk 0:09:42.5]} 5. Bg2 {[%clk 0:09:50.9]} 5...
O-O {[%clk 0:09:40.5]} 6. O-O {[%clk 0:09:52.5]} 6... c5 {[%clk 0:09:30.3]} 7.
Re1 {[%clk 0:09:51.4]} 7... Nc6 {[%clk 0:09:27.5]} 8. c3 {[%clk 0:09:52.1]} 8...
e5 {[%clk 0:09:23.6]} 9. h3 {[%clk 0:09:47.1]} 9... h6 {[%clk 0:09:07.5]} 10.
Be3 {[%clk 0:09:43.5]} 10... Rb8 {[%clk 0:09:01.6]} 11. Nbd2 {[%clk 0:09:40.7]}
11... b5 {[%clk 0:08:54]} 12. d4 {[%clk 0:09:41]} 12... cxd4 {[%clk 0:08:28.4]}
13. cxd4 {[%clk 0:09:39.4]} 13... a6 {[%clk 0:08:29.8]} 14. Rc1 {[%clk
0:09:29.7]} 14... Bd7 {[%clk 0:08:29.6]} 15. dxe5 {[%clk 0:08:59.4]} 15... dxe5
{[%clk 0:08:27.8]} 16. Bc5 {[%clk 0:09:00.1]} 16... Re8 {[%clk 0:08:28.2]} 17.
Bd6 {[%clk 0:09:00.6]} 17... Rc8 {[%clk 0:08:28.8]} 18. Nb3 {[%clk 0:08:51.6]}
18... Be6 {[%clk 0:07:59.5]} 19. Nc5 {[%clk 0:08:09.5]} 19... Bxa2 {[%clk
0:07:53.3]} 20. b3 {[%clk 0:07:50.3]} 20... Nd4 {[%clk 0:07:45.7]} 21. Nb7
{[%clk 0:06:02.3]} 21... Rxc1 {[%clk 0:04:56]} 22. Qxc1 {[%clk 0:05:58.1]} 22...
Nxf3+ {[%clk 0:04:53.7]} 23. Bxf3 {[%clk 0:05:57.1]} 23... Qd7 {[%clk
0:04:15.3]} 24. Qa3 {[%clk 0:05:42.2]} 24... Bxb3 {[%clk 0:03:59.6]} 25. Qxa6
{[%clk 0:05:36.9]} 25... Bc4 {[%clk 0:03:36]} 26. Bg2 {[%clk 0:05:16.7]} 26...
Re6 {[%clk 0:03:04.1]} 27. Rd1 {[%clk 0:04:17.8]} 27... Ne8 {[%clk 0:02:09.9]}
28. Qa8 {[%clk 0:03:35.5]} 28... Qc6 {[%clk 0:02:09.3]} 29. Bb4 {[%clk
0:03:21.4]} 29... Kh7 {[%clk 0:01:48.5]} 30. Qb8 {[%clk 0:03:02.4]} 30... Qc7
{[%clk 0:01:27.7]} 31. Qxc7 {[%clk 0:02:55]} 31... Nxc7 {[%clk 0:01:29.6]} 32.
Rd7 {[%clk 0:02:55.8]} 32... Na6 {[%clk 0:01:24.8]} 33. Bd2 {[%clk 0:02:37.7]}
33... b4 {[%clk 0:00:52.8]} 34. Nd6 {[%clk 0:01:38.3]} 34... Ba2 {[%clk
0:00:34.9]} 35. Nxf7 {[%clk 0:00:53.1]} 35... Rb6 {[%clk 0:00:27.5]} 36. Bc1
{[%clk 0:00:11.8]} 36... Nc5 {[%clk 0:00:21]} 37. Rc7 {[%clk 0:00:10.5]} 37...
Nd3 {[%clk 0:00:14.5]} 38. Be3 {[%clk 0:00:10.9]} 38... Rf6 {[%clk 0:00:05.8]}
39. Nxh6 {[%clk 0:00:09.2]} 39... b3 {[%clk 0:00:05.2]} 40. Ng4 {[%clk
0:00:10.3]} 40... Ra6 {[%clk 0:00:04.3]} 41. Bh6 {[%clk 0:00:10.8]} 41... b2
{[%clk 0:00:05]} 42. Rxg7+ {[%clk 0:00:11.7]} 42... Kh8 {[%clk 0:00:06.6]} 43.
Rb7 {[%clk 0:00:10]} 43... b1=Q+ {[%clk 0:00:07.7]} 44. Rxb1 {[%clk 0:00:09.4]}
44... Bxb1 {[%clk 0:00:09.6]} 45. Bf1 {[%clk 0:00:09.8]} 45... Ra5 {[%clk
0:00:06.9]} 46. Bg5 {[%clk 0:00:09.4]} 46... Kg7 {[%clk 0:00:05.9]} 47. Bf6+
{[%clk 0:00:05.9]} 47... Kf8 {[%clk 0:00:06.6]} 48. Kg2 {[%clk 0:00:05.7]} 48...
Ne1+ {[%clk 0:00:02.7]} 49. Kg1 {[%clk 0:00:04.6]} 49... Nf3+ {[%clk 0:00:03.8]}
50. Kh1 {[%clk 0:00:04.4]} 50... Bxe4 {[%clk 0:00:05.7]} 0-1

[Event "GrandPrix_29.05"]
[Site "Chess.com"]
[Date "2020.05.29"]
[Round "1"]
[White "GM_LOADING"]
[Black "DariaVoit"]
[Result "1/2-1/2"]
[WhiteElo "2380"]
[BlackElo "2079"]
[TimeControl "600+2"]
[EndTime "9:24:38 PDT"]
[Termination "Game drawn by repetition"]

1. e4 {[%clk 0:10:01.9]} 1... e6 {[%clk 0:10:00.6]} 2. d4 {[%clk 0:10:02.6]}
2... d5 {[%clk 0:10:02]} 3. Nc3 {[%clk 0:10:04.2]} 3... Bb4 {[%clk 0:10:02.4]}
4. Ne2 {[%clk 0:10:04.9]} 4... dxe4 {[%clk 0:10:02.3]} 5. a3 {[%clk 0:10:05.7]}
5... Bxc3+ {[%clk 0:10:02.8]} 6. Nxc3 {[%clk 0:10:07.6]} 6... Nf6 {[%clk
0:10:01.9]} 7. Bg5 {[%clk 0:10:07.3]} 7... b6 {[%clk 0:10:02.7]} 8. Nxe4 {[%clk
0:08:26.7]} 8... Bb7 {[%clk 0:10:03.1]} 9. Bb5+ {[%clk 0:08:15.5]} 9... c6
{[%clk 0:09:09.4]} 10. Bc4 {[%clk 0:06:30.2]} 10... h6 {[%clk 0:08:57]} 11. Bh4
{[%clk 0:02:30.5]} 11... g5 {[%clk 0:08:39.2]} 12. Nxf6+ {[%clk 0:02:31.1]}
12... Qxf6 {[%clk 0:08:41.1]} 13. Bg3 {[%clk 0:02:32.8]} 13... Nd7 {[%clk
0:08:40.3]} 14. Qe2 {[%clk 0:02:22.2]} 14... O-O-O {[%clk 0:07:34.7]} 15. O-O-O
{[%clk 0:02:21.7]} 15... Rhe8 {[%clk 0:06:05.2]} 16. Rhe1 {[%clk 0:01:43.6]}
16... Qf5 {[%clk 0:05:37]} 17. h4 {[%clk 0:01:01.3]} 17... Nf6 {[%clk
0:05:17.4]} 18. hxg5 {[%clk 0:00:54.9]} 18... hxg5 {[%clk 0:05:19.3]} 19. Be5
{[%clk 0:00:55.2]} 19... g4 {[%clk 0:04:47.2]} 20. Ba6 {[%clk 0:00:41.6]} 20...
Nd7 {[%clk 0:04:28.9]} 21. Qc4 {[%clk 0:00:11.3]} 21... Nb8 {[%clk 0:03:45.9]}
22. Bxb7+ {[%clk 0:00:07]} 22... Kxb7 {[%clk 0:03:45.5]} 23. Rd2 {[%clk
0:00:05.3]} 23... Nd7 {[%clk 0:03:44.8]} 24. Qd3 {[%clk 0:00:04.4]} 24... Qxd3
{[%clk 0:03:25.6]} 25. Rxd3 {[%clk 0:00:06.3]} 25... Nxe5 {[%clk 0:03:26.7]} 26.
Rxe5 {[%clk 0:00:07.9]} 26... f6 {[%clk 0:03:27]} 27. Re4 {[%clk 0:00:05.4]}
27... f5 {[%clk 0:03:27.6]} 28. Re5 {[%clk 0:00:06.9]} 28... Kc7 {[%clk
0:03:28.1]} 29. Rde3 {[%clk 0:00:06.9]} 29... Rxd4 {[%clk 0:03:21.4]} 30. Rxe6
{[%clk 0:00:08.3]} 30... Rxe6 {[%clk 0:03:10.3]} 31. Rxe6 {[%clk 0:00:10.2]}
31... Rf4 {[%clk 0:03:11.7]} 32. Re2 {[%clk 0:00:11.3]} 32... Kd6 {[%clk
0:03:11.2]} 33. Kd2 {[%clk 0:00:07.5]} 33... Rd4+ {[%clk 0:03:08.1]} 34. Kc3
{[%clk 0:00:06.5]} 34... Rd1 {[%clk 0:03:05]} 35. Re8 {[%clk 0:00:05.2]} 35...
Rf1 {[%clk 0:03:03.8]} 36. Re2 {[%clk 0:00:06.2]} 36... a5 {[%clk 0:03:00]} 37.
Kd4 {[%clk 0:00:05.1]} 37... a4 {[%clk 0:02:53.2]} 38. Ke3 {[%clk 0:00:04.3]}
38... Ke5 {[%clk 0:02:53.3]} 39. Kd3+ {[%clk 0:00:04.3]} 39... Kd5 {[%clk
0:02:54.3]} 40. Ke3 {[%clk 0:00:05.5]} 40... Rb1 {[%clk 0:02:50.7]} 41. c3
{[%clk 0:00:05.6]} 41... Ke5 {[%clk 0:02:49.7]} 42. Kd3+ {[%clk 0:00:07]} 42...
Kd5 {[%clk 0:02:49.3]} 43. Ke3 {[%clk 0:00:08.3]} 43... Kc4 {[%clk 0:02:34.3]}
44. Kf4 {[%clk 0:00:09.1]} 44... Kd3 {[%clk 0:02:35.2]} 45. Re3+ {[%clk
0:00:09.5]} 45... Kd2 {[%clk 0:02:36.3]} 46. Kxf5 {[%clk 0:00:10.6]} 46... Rxb2
{[%clk 0:02:36.8]} 47. Re6 {[%clk 0:00:11.8]} 47... c5 {[%clk 0:02:32.4]} 48.
Kxg4 {[%clk 0:00:12.7]} 48... Kxc3 {[%clk 0:02:33.3]} 49. f4 {[%clk 0:00:13.7]}
49... Rxg2+ {[%clk 0:02:33.5]} 50. Kf3 {[%clk 0:00:15]} 50... Rg1 {[%clk
0:02:32.3]} 51. Rxb6 {[%clk 0:00:15.5]} 51... Ra1 {[%clk 0:02:21]} 52. f5 {[%clk
0:00:15.7]} 52... Rxa3 {[%clk 0:02:22.4]} 53. f6 {[%clk 0:00:16.9]} 53... Kc4+
{[%clk 0:02:19.6]} 54. Ke4 {[%clk 0:00:13.1]} 54... Ra1 {[%clk 0:02:19.5]} 55.
Ke5 {[%clk 0:00:10.8]} 55... Rf1 {[%clk 0:02:14.4]} 56. Ke6 {[%clk 0:00:11.1]}
56... a3 {[%clk 0:02:14]} 57. f7 {[%clk 0:00:09]} 57... a2 {[%clk 0:02:06.9]}
58. Ra6 {[%clk 0:00:10]} 58... Kb3 {[%clk 0:01:58.8]} 59. Ke7 {[%clk 0:00:09.5]}
59... Re1+ {[%clk 0:01:51.9]} 60. Kd7 {[%clk 0:00:05.3]} 60... Rf1 {[%clk
0:01:47.8]} 61. Ke7 {[%clk 0:00:06.5]} 61... c4 {[%clk 0:01:09.7]} 62. Rb6+
{[%clk 0:00:06.1]} 62... Kc2 {[%clk 0:01:10.2]} 63. Ra6 {[%clk 0:00:07.5]} 63...
Kb2 {[%clk 0:01:07.3]} 64. Rb6+ {[%clk 0:00:08.8]} 64... Kc2 {[%clk 0:01:05.1]}
65. Ra6 {[%clk 0:00:10.1]} 65... Kb2 {[%clk 0:01:06.3]} 66. Rb6+ {[%clk
0:00:11.5]} 66... Kc2 {[%clk 0:01:07.6]} 1/2-1/2